fUSD/lending_fUSD_20250211
["ID","MTS","AMOUNT","RATE_DAILY","PERIOD"]
[352705981,1739260249807,-506.63612417,0.00010958,2]
[352705982,1739260249816,-503.09379956,0.00010958,2]
[352705983,1739260249826,-567.36100023,0.00010958,2]
[352705984,1739260249835,-313.59598745,0.00010958,2]
[352705985,1739260249844,-500.0,0.00010958,2]
[352705986,1739260249854,-500.0,0.00010958,2]
[352705987,1739260249864,-500.0,0.00010958,2]
[352705988,1739260249873,-502.90056465,0.00010958,2]
[352705989,1739260249882,-500.0,0.00010958,2]
[352705990,1739260249891,-685.61,0.00010958,2]
[352705991,1739260249900,-500.0,0.00010958,2]
[352705992,1739260249909,-500.0,0.00010958,2]
[352705993,1739260249919,-502.65619924,0.00010958,2]
[352705994,1739260249928,-500.0,0.00010958,2]
[352705995,1739260249937,-500.0,0.00010958,2]
[352705996,1739260249946,-578.91249032,0.00010958,2]
[352705997,1739260249955,-500.0,0.00010958,2]
[352705998,1739260249965,-500.0,0.00010958,2]
[352705999,1739260249977,-500.0,0.00010958,2]
[352706000,1739260249987,-500.0,0.00010958,2]
[352706001,1739260249996,-500.0,0.00010958,2]
[352706002,1739260250005,-500.0,0.00010958,2]
[352706003,1739260250017,-500.0,0.00010958,2]
[352706004,1739260250026,-502.21044578,0.00010958,2]
[352706005,1739260250036,-500.0,0.00010958,2]
[352706006,1739260250046,-500.0,0.00010958,2]
[352706007,1739260250058,-608.02864353,0.00010958,2]
[352706008,1739260250068,-500.0,0.00010958,2]
[352706009,1739260250077,-500.0,0.00010958,2]
[352706010,1739260250086,-500.0,0.00010958,2]
[352706011,1739260250094,-500.0,0.00010958,2]
[352706012,1739260250103,-500.0,0.00010958,2]
[352706013,1739260250112,-500.0,0.00010958,2]
[352706014,1739260250121,-504.34413393,0.00010958,2]
[352706015,1739260250130,-500.0,0.00010958,2]
[352706016,1739260250139,-500.0,0.00010958,2]
[352706017,1739260250148,-500.0,0.00010958,2]
[352706018,1739260250157,-500.0,0.00010958,2]
[352706019,1739260250167,-500.0,0.00010958,2]
[352706020,1739260250176,-500.0,0.00010958,2]
[352706021,1739260250185,-500.0,0.00010958,2]
[352706022,1739260250194,-500.0,0.00010958,2]
[352706023,1739260250204,-500.0,0.00010958,2]
[352706024,1739260250213,-500.0,0.00010958,2]
[352706025,1739260250224,-500.0,0.00010958,2]
[352706026,1739260250235,-501.11851239,0.00010958,2]
[352706027,1739260250245,-500.0,0.00010958,2]
[352706028,1739260250254,-500.0,0.00010958,2]
[352706029,1739260250263,-165.1929145,0.00010958,2]
[352706030,1739260250273,-500.0,0.00010958,2]
[352706031,1739260250282,-500.0,0.00010958,2]
[352706032,1739260250290,-500.0,0.00010958,2]
[352706033,1739260250300,-500.0,0.00010958,2]
[352706034,1739260250309,-500.0,0.00010958,2]
[352706035,1739260250318,-500.0,0.00010958,2]
[352706036,1739260250327,-500.0,0.00010958,2]
[352706037,1739260250336,-504.94289247,0.00010958,2]
[352706038,1739260250345,-501.87813271,0.00010958,2]
[352706039,1739260250355,-500.0,0.00010958,2]
[352706040,1739260250363,-502.12666529,0.00010958,2]
[352706041,1739260250372,-500.0,0.00010958,2]
[352706042,1739260250381,-503.63074802,0.00010958,2]
[352706043,1739260250390,-500.0,0.00010958,2]
[352706044,1739260250399,-500.0,0.00010958,2]
[352706045,1739260250409,-500.0,0.00010958,2]
[352706046,1739260250418,-500.0,0.00010958,2]
[352706047,1739260250427,-504.24828861,0.00010958,2]
[352706048,1739260250436,-500.0,0.00010958,2]
[352706049,1739260250445,-390.79906285,0.00010958,2]
[352706050,1739260250454,-503.48150078,0.00010958,2]
[352706051,1739260250463,-173.21270054,0.00010958,2]
[352706052,1739260250473,-500.0,0.00010958,2]
[352706053,1739260250482,-500.46887542,0.00010958,2]
[352706054,1739260250492,-500.0,0.00010958,2]
[352706055,1739260250501,-501.06937479,0.00010958,2]
[352706056,1739260250510,-601.2,0.00010958,2]
[352706057,1739260250520,-500.0,0.00010958,2]
[352706058,1739260250529,-500.0,0.00010958,2]
[352706059,1739260250539,-500.0,0.00010958,2]
[352706060,1739260250548,-500.27024243,0.00010958,2]
[352706061,1739260250558,-500.0,0.00010958,2]
[352706062,1739260250568,-500.0,0.00010958,2]
[352706063,1739260250578,-500.0,0.00010958,2]
[352706064,1739260250588,-500.0,0.00010958,2]
[352706065,1739260250598,-500.0,0.00010958,2]
[352706066,1739260250608,-500.0,0.00010958,2]
[352706067,1739260250618,-370.66253468,0.00010958,2]
[352706068,1739260250628,-500.0,0.00010958,2]
[352706069,1739260250639,-554.10393706,0.00010958,2]
[352706070,1739260250649,-521.37429128,0.00010958,2]
[352706071,1739260250659,-644.57,0.00010958,2]
[352706072,1739260250670,-500.0,0.00010958,2]
[352706073,1739260250680,-504.13178867,0.00010958,2]
[352706074,1739260250690,-500.0,0.00010958,2]
[352706075,1739260250700,-500.0,0.00010958,2]
[352706076,1739260250711,-687.65,0.00010958,2]
[352706077,1739260250722,-500.0,0.00010958,2]
[352706078,1739260250733,-506.69909048,0.00010958,2]
[352706079,1739260250742,-1551.01,0.00010958,2]
[352706080,1739260250752,-501.471419,0.00010958,2]
[352706081,1739260250763,-500.0,0.00010958,2]
[352706082,1739260250772,-500.0,0.00010958,2]
[352706083,1739260250782,-500.0,0.00010958,2]
[352706084,1739260250792,-502.54644799,0.00010958,2]
[352706085,1739260250808,-500.0,0.00010958,2]
[352706086,1739260250819,-501.69388937,0.00010958,2]
[352706087,1739260250829,-500.0,0.00010958,2]
[352706088,1739260250838,-500.0,0.00010958,2]
[352706089,1739260250848,-500.0,0.00010958,2]
[352706090,1739260250858,-500.0,0.00010958,2]
[352706091,1739260250868,-500.0,0.00010958,2]
[352706092,1739260250877,-1494.79,0.00010958,2]
[352706093,1739260250887,-501.86669484,0.00010958,2]
[352706094,1739260250898,-500.0,0.00010958,2]
[352706095,1739260250908,-511.14872201,0.00010958,2]
[352706096,1739260250918,-503.10160048,0.00010958,2]
[352706097,1739260250928,-500.0,0.00010958,2]
[352706098,1739260250938,-500.0,0.00010958,2]
[352706099,1739260250948,-500.0,0.00010958,2]
[352706100,1739260250958,-500.0,0.00010958,2]
[352706101,1739260250967,-500.0,0.00010958,2]
[352706102,1739260250983,-500.0,0.00010958,2]
[352706103,1739260250992,-500.0,0.00010958,2]
[352706104,1739260251002,-498.0901944,0.00010958,2]
[352706105,1739260251012,-500.0,0.00010958,2]
[352706106,1739260251023,-502.20503265,0.00010958,2]
[352706107,1739260251033,-1000.0,0.00010958,2]
[352706108,1739260251043,-503.63834589,0.00010958,2]
[352706109,1739260251054,-500.0,0.00010958,2]
[352706110,1739260251064,-500.0,0.00010958,2]
[352706111,1739260251074,-500.0,0.00010958,2]
[352706112,1739260251084,-1024.51,0.00010958,2]
[352706113,1739260251093,-502.07841809,0.00010958,2]
[352706114,1739260251103,-500.0,0.00010958,2]
[352706115,1739260251113,-500.0,0.00010958,2]
[352706116,1739260251123,-500.0,0.00010958,2]
[352706117,1739260251133,-498.17609708,0.00010958,2]
[352706118,1739260251142,-503.38005968,0.00010958,2]
[352706119,1739260251152,-5025.11369548,0.00010958,2]
[352706120,1739260251161,-500.0,0.00010958,2]
[352706121,1739260251171,-500.0,0.00010958,2]
[352706122,1739260251180,-500.0,0.00010958,2]
[352706123,1739260251190,-848.53,0.00010958,2]
[352706124,1739260251199,-500.0,0.00010958,2]
[352706125,1739260251209,-500.0,0.00010958,2]
[352706126,1739260251218,-503.42174661,0.00010958,2]
[352706127,1739260251230,-500.0,0.00010958,2]
[352706128,1739260251240,-500.0,0.00010958,2]
[352706129,1739260251249,-500.0,0.00010958,2]
[352706130,1739260251259,-502.21947915,0.00010958,2]
[352706131,1739260251268,-503.60049465,0.00010958,2]
[352706132,1739260251278,-500.0,0.00010958,2]
[352706133,1739260251288,-500.0,0.00010958,2]
[352706134,1739260251298,-500.0,0.00010958,2]
[352706135,1739260251307,-500.0,0.00010958,2]
[352706136,1739260251317,-504.11367613,0.00010958,2]
[352706137,1739260251326,-482.67112956,0.00010958,2]
[352706138,1739260251335,-523.61925389,0.00010958,2]
[352706139,1739260251345,-500.0,0.00010958,2]
[352706140,1739260251355,-500.0,0.00010958,2]
[352706141,1739260251364,-973.32,0.00010958,2]
[352706142,1739260251374,-1280.92,0.00010958,2]
[352706143,1739260251384,-500.0,0.00010958,2]
[352706144,1739260251394,-500.0,0.00010958,2]
[352706145,1739260251403,-500.0,0.00010958,2]
[352706146,1739260251413,-1255.1,0.00010958,2]
[352706147,1739260251423,-500.0,0.00010958,2]
[352706148,1739260251432,-555.33,0.00010958,2]
[352706149,1739260251442,-500.0,0.00010958,2]
[352706150,1739260251452,-500.0,0.00010958,2]
[352706151,1739260251462,-500.0,0.00010958,2]
[352706152,1739260251471,-500.0,0.00010958,2]
[352706153,1739260251482,-501.15293757,0.00010958,2]
[352706154,1739260251492,-505.9363508,0.00010958,2]
[352706155,1739260251501,-502.42360057,0.00010958,2]
[352706156,1739260251512,-502.69819417,0.00010958,2]
[352706157,1739260251522,-501.27543219,0.00010958,2]
[352706158,1739260251531,-505.06935373,0.00010958,2]
[352706159,1739260251542,-502.76716042,0.00010958,2]
[352706160,1739260251552,-679.28,0.00010958,2]
[352706161,1739260251562,-500.0,0.00010958,2]
[352706162,1739260251572,-505.52,0.00010958,2]
[352706163,1739260251582,-500.0,0.00010958,2]
[352706164,1739260251591,-514.3992859,0.00010958,2]
[352706165,1739260251601,-500.0,0.00010958,2]
[352706166,1739260251611,-519.27,0.00010958,2]
[352706167,1739260251620,-1030.78,0.00010958,2]
[352706168,1739260251630,-500.0,0.00010958,2]
[352706169,1739260251640,-502.11111972,0.00010958,2]
[352706170,1739260251650,-503.41886303,0.00010958,2]
[352706171,1739260251660,-500.0,0.00010958,2]
[352706172,1739260251670,-500.0,0.00010958,2]
[352706173,1739260251680,-500.0,0.00010958,2]
[352706174,1739260251690,-500.0,0.00010958,2]
[352706175,1739260251699,-500.0,0.00010958,2]
[352706176,1739260251709,-500.0,0.00010958,2]
[352706177,1739260251720,-1530.98,0.00010958,2]
[352706178,1739260251731,-500.0,0.00010958,2]
[352706179,1739260251740,-500.46571881,0.00010958,2]
[352706180,1739260251750,-500.0,0.00010958,2]
[352706181,1739260251759,-500.0,0.00010958,2]
[352706182,1739260251769,-500.0,0.00010958,2]
[352706183,1739260251779,-500.0,0.00010958,2]
[352706184,1739260251789,-500.0,0.00010958,2]
[352706185,1739260251800,-500.0,0.00010958,2]
[352706186,1739260251809,-496.5,0.00010958,2]
[352706187,1739260251819,-503.95539833,0.00010958,2]
[352706188,1739260251834,-520.24833158,0.00010958,2]
[352706189,1739260251848,-501.69653753,0.00010958,2]
[352706190,1739260251857,-500.0,0.00010958,2]
[352706191,1739260251867,-500.0,0.00010958,2]
[352706192,1739260251876,-780.25,0.00010958,2]
[352706193,1739260251886,-504.47468357,0.00010958,2]
[352706194,1739260251896,-500.0,0.00010958,2]
[352706195,1739260251905,-500.0,0.00010958,2]
[352706196,1739260251915,-500.0,0.00010958,2]
[352706197,1739260251925,-500.0,0.00010958,2]
[352706198,1739260251934,-502.97003389,0.00010958,2]
[352706199,1739260251944,-500.0,0.00010958,2]
[352706200,1739260251953,-500.0,0.00010958,2]
[352706201,1739260251963,-500.0,0.00010958,2]
[352706202,1739260251975,-500.0,0.00010958,2]
[352706203,1739260251986,-450.92560828,0.00010958,2]
[352706204,1739260251995,-1303.86,0.00010958,2]
[352706205,1739260252005,-500.0,0.00010958,2]
[352706206,1739260252015,-500.0,0.00010958,2]
[352706207,1739260252025,-503.44331165,0.00010958,2]
[352706208,1739260252034,-502.19564408,0.00010958,2]
[352706209,1739260252044,-500.0,0.00010958,2]
[352706210,1739260252053,-500.0,0.00010958,2]
[352706211,1739260252064,-500.0,0.00010958,2]
[352706212,1739260252074,-500.0,0.00010958,2]
[352706213,1739260252084,-500.0,0.00010958,2]
[352706214,1739260252094,-1403.55,0.00010958,2]
[352706215,1739260252103,-500.0,0.00010958,2]
[352706216,1739260252113,-502.02113852,0.00010958,2]
[352706217,1739260252123,-500.0,0.00010958,2]
[352706218,1739260252132,-690.44,0.00010958,2]
[352706219,1739260252142,-500.0,0.00010958,2]
[352706220,1739260252151,-573.94136185,0.00010958,2]
[352706221,1739260252161,-500.0,0.00010958,2]
[352706222,1739260252170,-500.0,0.00010958,2]
[352706223,1739260252180,-501.22215025,0.00010958,2]
[352706224,1739260252189,-500.0,0.00010958,2]
[352706225,1739260252199,-500.0,0.00010958,2]
[352706226,1739260252208,-500.0,0.00010958,2]
[352706227,1739260252218,-500.0,0.00010958,2]
[352706228,1739260252227,-500.0,0.00010958,2]
[352706229,1739260252237,-500.0,0.00010958,2]
[352706230,1739260252247,-1250.34,0.00010958,2]
[352706231,1739260252256,-500.0,0.00010958,2]
[352706232,1739260252266,-500.0,0.00010958,2]
[352706233,1739260252275,-502.08811028,0.00010958,2]
[352706234,1739260252285,-500.0,0.00010958,2]
[352706235,1739260252295,-500.0,0.00010958,2]
[352706236,1739260252305,-500.0,0.00010958,2]
[352706237,1739260252315,-500.0,0.00010958,2]
[352706238,1739260252325,-500.0,0.00010958,2]
[352706239,1739260252335,-500.0,0.00010958,2]
[352706240,1739260252345,-500.0,0.00010958,2]
[352706241,1739260252355,-861.01,0.00010958,2]
[352706242,1739260252364,-885.49,0.00010958,2]
[352706243,1739260252374,-500.0,0.00010958,2]
[352706244,1739260252383,-500.0,0.00010958,2]
[352706245,1739260252393,-500.0,0.00010958,2]
[352706246,1739260252403,-500.0,0.00010958,2]
[352706247,1739260252413,-504.19345658,0.00010958,2]
[352706248,1739260252423,-500.0,0.00010958,2]
[352706249,1739260252432,-500.0,0.00010958,2]
[352706250,1739260252442,-500.0,0.00010958,2]
[352706251,1739260252452,-505.19390101,0.00010958,2]
[352706252,1739260252463,-500.0,0.00010958,2]
[352706253,1739260252475,-500.0,0.00010958,2]
[352706254,1739260252484,-500.0,0.00010958,2]
[352706255,1739260252494,-1310.97,0.00010958,2]
[352706256,1739260252504,-680.22,0.00010958,2]
[352706257,1739260252513,-500.0,0.00010958,2]
[352706258,1739260252523,-899.57,0.00010958,2]
[352706259,1739260252533,-502.94934936,0.00010958,2]
[352706260,1739260252543,-500.0,0.00010958,2]
[352706261,1739260252553,-500.0,0.00010958,2]
[352706262,1739260252562,-500.0,0.00010958,2]
[352706263,1739260252572,-1426.5,0.00010958,2]
[352706264,1739260252582,-498.24889122,0.00010958,2]
[352706265,1739260252591,-500.0,0.00010958,2]
[352706266,1739260252601,-500.0,0.00010958,2]
[352706267,1739260252612,-542.92,0.00010958,2]
[352706268,1739260252622,-1171.78,0.00010958,2]
[352706269,1739260252632,-500.0,0.00010958,2]
[352706270,1739260252642,-501.71974693,0.00010958,2]
[352706271,1739260252652,-500.0,0.00010958,2]
[352706272,1739260252661,-500.0,0.00010958,2]
[352706273,1739260252671,-809.66,0.00010958,2]
[352706274,1739260252680,-502.33353687,0.00010958,2]
[352706275,1739260252689,-500.0,0.00010958,2]
[352706276,1739260252699,-525.84567887,0.00010958,2]
[352706277,1739260252709,-1558.59,0.00010958,2]
[352706278,1739260252718,-500.0,0.00010958,2]
[352706279,1739260252728,-500.0,0.00010958,2]
[352706280,1739260252738,-500.0,0.00010958,2]
[352706281,1739260252747,-504.88435716,0.00010958,2]
[352706282,1739260252757,-1070.76,0.00010958,2]
[352706283,1739260252767,-500.0,0.00010958,2]
[352706284,1739260252776,-500.0,0.00010958,2]
[352706285,1739260252786,-500.0,0.00010958,2]
[352706286,1739260252796,-500.0,0.00010958,2]
[352706287,1739260252806,-502.16547714,0.00010958,2]
[352706288,1739260252816,-500.0,0.00010958,2]
[352706289,1739260252826,-680.97,0.00010958,2]
[352706290,1739260252836,-501.51363663,0.00010958,2]
[352706291,1739260252845,-500.0,0.00010958,2]
[352706292,1739260252855,-500.46274185,0.00010958,2]
[352706293,1739260252864,-500.0,0.00010958,2]
[352706294,1739260252874,-500.0,0.00010958,2]
[352706295,1739260252884,-500.0,0.00010958,2]
[352706296,1739260252894,-1678.6,0.00010958,2]
[352706297,1739260252904,-500.0,0.00010958,2]
[352706298,1739260252916,-500.0,0.00010958,2]
[352706299,1739260253155,-1599.54,0.00010958,2]
[352706300,1739260253179,-1863.2,0.00010958,2]
[352706301,1739260253189,-345.43801489,0.00010958,2]
[352706302,1739260253439,-154.56198511,0.00010958,2]
[352706303,1739260253449,-500.0,0.00010958,2]
[352706304,1739260253458,-345.41721478,0.00010958,2]
[352706305,1739260253469,-154.58278522,0.00010958,2]
[352706306,1739260253478,-500.0,0.00010958,2]
[352706307,1739260253488,-490.03714826,0.00010958,2]
[352706308,1739260253499,-9.96285174,0.00010958,2]
[352706309,1739260253509,-500.0,0.00010958,2]
[352706310,1739260253518,-172.57617556,0.00010958,2]
[352706311,1739260253529,-294.70240754,0.00010958,2]
[352706326,1739260776157,5000.0,0.0002,120]
[352706328,1739260829667,259.82,8e-05,2]
[352706329,1739260831214,150.0,0.00019712,120]
[352706330,1739260849274,160.05,8.12e-05,2]
[352706331,1739260890732,150.0,0.00019625,120]
[352706337,1739261007081,1000.0,0.0002,120]
[352706338,1739261010744,150.0,0.00019337,120]
[352706339,1739261094621,727.58,8.219e-05,2]
[352706340,1739261131563,150.0,0.00019405,120]
[352706358,1739261431632,-158.88757554,9.616e-05,2]
[352706359,1739261431642,-154.23642247,9.616e-05,2]
[352706360,1739261431651,-150.0,9.617e-05,2]
[352706361,1739261431660,-235.97,9.618e-05,2]
[352706362,1739261431670,-1000.0,9.718e-05,2]
[352706363,1739261431679,-150.0,9.776e-05,2]
[352706364,1739261431689,-173.98,9.954e-05,2]
[352706365,1739261431699,-154.45,9.971e-05,2]
[352706366,1739261431709,-154.45,9.984e-05,2]
[352706367,1739261431720,-116.51061026,9.996e-05,2]
[352706368,1739261431741,-37.93938974,9.996e-05,2]
[352706369,1739261431751,-463.35,0.0001,10]
[352706370,1739261431761,-154.45,0.00010009,2]
[352706371,1739261431772,-154.45,0.00010021,2]
[352706372,1739261431782,-167.51,0.00010044,2]
[352706373,1739261431791,-300.0,0.0001013,2]
[352706374,1739261431801,-894.98,0.00010131,2]
[352706375,1739261431811,-158.37901603,0.00010131,2]
[352706376,1739261431835,-341.62098397,0.00010131,2]
[352706377,1739261431844,-161.23128029,0.00010131,2]
[352706378,1739261431869,-338.76871971,0.00010131,2]
[352706379,1739261431879,-500.0,0.00010131,2]
[352706380,1739261431888,-500.0,0.00010131,2]
[352706381,1739261431899,-137.67309504,0.00010131,2]
[352706382,1739261431911,-362.32690496,0.00010131,2]
[352706383,1739261431926,-173.15792603,0.00010131,2]
[352706384,1739261431936,-449.95,0.00010135,2]
[352706385,1739261431947,-502.18,0.00010203,2]
[352706386,1739261431957,-150.0,0.00010278,2]
[352706387,1739261431968,-727.58,0.00010463,2]
[352706388,1739261431980,-1655.825,0.00010486,2]
[352706389,1739261431991,-150.0,0.00010578,2]
[352706390,1739261432001,-623.51675259,0.000106,2]
[352706391,1739261432011,-174.08611888,0.000106,2]
[352706392,1739261432021,-1512.74316779,0.000106,2]
[352706393,1739261432030,-359.49270823,0.000106,2]
[352706394,1739261432040,-4609.0,0.00010685,2]
[352706395,1739261432050,-150.0,0.00010699,2]
[352706396,1739261432059,-1094.0,0.000107,2]
[352706397,1739261432070,-13088.67142152,0.000107,2]
[352706401,1739261432160,-2750.19865954,0.000107,2]
[352706402,1739261432200,-3450.0,0.000107,2]
[352706403,1739261432211,-4100.0,0.000107,2]
[352706404,1739261432222,-1025.55818525,0.000107,2]
[352706409,1739261437465,-293.23478148,0.000106,2]
[352706410,1739261437710,-27.51377714,0.000106,2]
[352706411,1739261437720,-990.0,0.000107,2]
[352706412,1739261437730,-5626.38249915,0.000107,2]
[352706434,1739261437970,-11593.50778833,0.000107,2]
[352706474,1739261439551,-362.95868926,0.000107,2]
[352706475,1739261441750,-78137.38070607,0.000107,2]
[352706478,1739261441886,-365.78550015,0.000107,2]
[352706510,1739261442718,-16317.0,0.000107,2]
[352706517,1739261442770,-633.65788589,0.000107,2]
[352706565,1739261445593,-890.0,0.000107,2]
[352706567,1739261445602,-1575.18803461,0.000107,2]
[352706575,1739261445670,-511.20015418,0.000107,2]
[352706577,1739261445698,-1609.24118642,0.000107,2]
[352706578,1739261445709,-3527.21195267,0.000107,2]
[352706579,1739261445752,-223848.02490207,0.000107,2]
[352706580,1739261445807,-939.4289586,0.000107,2]
[352706581,1739261445861,-1005.78113091,0.000107,2]
[352706587,1739261610777,150.0,0.00019154,120]
[352706588,1739261731596,150.0,0.0001996,120]
[352706589,1739261850803,150.0,0.00019859,120]
[352706591,1739261911333,150.0,0.00018959,120]
[352706592,1739261970756,150.0,0.00018814,120]
[352706593,1739262090797,150.0,0.00019423,120]
[352706594,1739262160441,689.96,8.219e-05,2]
[352706596,1739262295377,1000.0,0.0002,120]
[352706597,1739262337306,11929.94892043,8e-05,2]
[352706623,1739262631794,-359.96,9.911e-05,2]
[352706624,1739262631804,-150.0,9.955e-05,2]
[352706625,1739262631815,-89.73194116,9.999e-05,2]
[352706629,1739262631855,-210.26805884,9.999e-05,2]
[352706630,1739262631865,-5811.78147372,0.0001,2]
[352706631,1739262631907,-543.46441461,0.0001,2]
[352706632,1739262632015,-7338.29900142,0.0001,2]
[352706633,1739262632074,-2021.717,0.0001,2]
[352706653,1739262637893,-22871.90999999,0.0001,2]
[352706654,1739262637951,-60794.88336707,0.0001,2]
[352706655,1739262639643,-5438.85599993,0.0001,2]
[352706656,1739262639858,-1281.76677281,0.0001,2]
[352706657,1739262639870,-585.06365125,0.0001,2]
[352706658,1739262642803,-287181.27564947,0.0001,2]
[352706659,1739262643211,-9924.47512135,0.0001,2]
[352706660,1739262643221,-150.0,0.00010002,2]
[352706661,1739262643230,-167.89,0.00010047,2]
[352706662,1739262643239,-725.64,0.0001006,2]
[352706663,1739262643248,-628.55,0.00010115,2]
[352706664,1739262643257,-272.94,0.00010137,2]
[352706665,1739262643266,-3946.05630134,0.00010478,2]
[352706666,1739262645786,-6053.93369866,0.00010478,2]
[352706667,1739262645795,-689.96,0.00010478,2]
[352706668,1739262645804,-1324.66,0.00010486,2]
[352706669,1739262645812,-150.99,0.00010486,2]
[352706670,1739262645821,-1448.24,0.00010486,2]
[352706671,1739262645830,-999.99,0.00010486,2]
[352706672,1739262645840,-150.99,0.00010486,2]
[352706673,1739262645856,-293.01,0.00010486,2]
[352706674,1739262645867,-534.4429308,0.000106,2]
[352706675,1739262645876,-421.3557999,0.000106,2]
[352706676,1739262645885,-299.99,0.000106,2]
[352706677,1739262645894,-547.79,0.000106,2]
[352706678,1739262645903,-1115.35,0.000106,2]
[352706679,1739262645911,-468.6,0.000106,2]
[352706680,1739262645920,-239.66180548,0.000106,2]
[352706681,1739262645929,-1008.49544518,0.000106,2]
[352706682,1739262645938,-59964.56526201,0.000107,2]
[352706683,1739262645966,-270.9328437,0.000107,2]
[352706684,1739262646164,-16257.2797,0.000107,2]
[352706685,1739262646175,-1301.6999998,0.000107,2]
[352706687,1739262796134,-1041.107756,0.00010699,3]
[352706688,1739262796156,-1041.107756,0.00010699,3]
[352706690,1739262807030,-2002.43958,0.0001059,2]
[352706691,1739262807052,-150.0,0.00010595,2]
[352706692,1739262807073,-159.774537,0.000106,2]
[352706693,1739262807096,-672.3302968,0.000106,2]
[352706694,1739262807117,-320.74855862,0.000106,2]
[352706695,1739262807369,-268.96927655,0.000106,2]
[352706696,1739262807398,-300.0,0.00010699,2]
[352706697,1739262807420,-802.0,0.000107,2]
[352706698,1739262807445,-834209.52223903,0.000107,2]
[352706699,1739263087102,538.3377,8.699e-05,2]
[352706700,1739263210533,677.09,8.219e-05,2]
[352706701,1739263545327,328.99548682,0.0002,120]
[352706704,1739263831923,-323.3551,8.973e-05,2]
[352706705,1739263831933,-250.0,9.299e-05,2]
[352706706,1739263831942,-1012.25,9.407e-05,2]
[352706707,1739263831951,-1358.91992375,9.423e-05,2]
[352706708,1739263831962,-780.09523378,9.423e-05,2]
[352706709,1739263831995,-329.73881434,9.423e-05,2]
[352706710,1739263832005,-150.0,9.616e-05,2]
[352706711,1739263832015,-150.0,9.665e-05,2]
[352706712,1739263832024,-150.0,9.714e-05,2]
[352706713,1739263832033,-150.0,9.762e-05,2]
[352706714,1739263832043,-779.11172444,9.795e-05,2]
[352706715,1739263832054,-169.83827556,9.795e-05,2]
[352706716,1739263832063,-150.0,9.811e-05,2]
[352706717,1739263832072,-362.82,9.839e-05,2]
[352706718,1739263832081,-1000.0,9.854e-05,2]
[352706719,1739263832091,-150.0,9.859e-05,2]
[352706720,1739263832100,-150.0,9.87e-05,2]
[352706721,1739263832109,-150.0,9.87e-05,2]
[352706722,1739263832118,-150.0,9.87e-05,2]
[352706723,1739263832128,-150.0,9.908e-05,2]
[352706724,1739263832137,-150.0,9.956e-05,2]
[352706725,1739263832149,-363.83172018,9.974e-05,2]
[352706726,1739263832162,-150.0,0.00010005,2]
[352706727,1739263832172,-150.0,0.00010054,2]
[352706728,1739263832182,-173.33,0.0001006,2]
[352706729,1739263832409,-150.0,0.00010102,2]
[352706730,1739263832422,-300.0,0.00010135,2]
[352706731,1739263832432,-242.81637736,0.00010136,2]
[352706732,1739263832442,-216.11,0.00010137,2]
[352706733,1739263832451,-150.0,0.00010151,2]
[352706734,1739263832461,-150.0,0.00010199,2]
[352706735,1739263832470,-150.0,0.00010248,2]
[352706736,1739263832481,-150.0,0.00010296,2]
[352706737,1739263832491,-300.0,0.000103,3]